[Event "Titled Tuesday Blitz November 08 Early 2022"]
[White "Barria Santos, Jose Guilherme"]
[Black "Lakshmi C"]
[WhiteFideId "1939300"]
[BlackFideId "25035347"]
[WhiteElo "2273"]
[BlackElo "1865"]
[Result "1-0"]
[Round "05"]
[TimeControl "180+1"]
[Date "2022.11.09"]
[WhiteClock "0:00:29"]
[BlackClock "0:00:02"]

1. d4 {[%clk 0:03:00]}  Nf6 {[%clk 0:02:54]} 2. c4 {[%clk 0:03:01]}  e6 {[%clk 0:02:52]} 3. Nc3 {[%clk 0:03:01]}  Bb4 {[%clk 0:02:51]} 4. Qc2 {[%clk 0:03:02]}  d5 {[%clk 0:02:51]} 5. Bg5 {[%clk 0:03:02]}  O-O {[%clk 0:02:49]} 6. a3 {[%clk 0:02:44]}  Be7 {[%clk 0:02:47]} 7. e3 {[%clk 0:02:42]}  b6 {[%clk 0:02:47]} 8. Rc1 {[%clk 0:02:14]}  Bb7 {[%clk 0:02:42]} 9. cxd5 {[%clk 0:02:14]}  exd5 {[%clk 0:02:42]} 10. Bd3 {[%clk 0:02:09]}  h6 {[%clk 0:02:39]} 11. Bxf6 {[%clk 0:02:06]}  Bxf6 {[%clk 0:02:39]} 12. b4 {[%clk 0:02:07]}  c6 {[%clk 0:02:21]} 13. Nf3 {[%clk 0:02:02]}  Nd7 {[%clk 0:02:19]} 14. O-O {[%clk 0:02:02]}  Rc8 {[%clk 0:02:14]} 15. Qb3 {[%clk 0:02:03]}  b5 {[%clk 0:01:02]} 16. e4 {[%clk 0:02:00]}  dxe4 {[%clk 0:00:48]} 17. Nxe4 {[%clk 0:02:00]}  Be7 {[%clk 0:00:48]} 18. Rfd1 {[%clk 0:01:57]}  Nf6 {[%clk 0:00:42]} 19. Nc5 {[%clk 0:01:57]}  Ba8 {[%clk 0:00:41]} 20. Ne5 {[%clk 0:01:57]}  Nd5 {[%clk 0:00:40]} 21. Bb1 {[%clk 0:01:50]}  Qd6 {[%clk 0:00:37]} 22. Qd3 {[%clk 0:01:47]}  g6 {[%clk 0:00:34]} 23. Qh3 {[%clk 0:01:43]}  Bg5 {[%clk 0:00:32]} 24. Ne4 {[%clk 0:01:35]}  Qd8 {[%clk 0:00:27]} 25. Nxg5 {[%clk 0:01:24]}  Qxg5 {[%clk 0:00:26]} 26. Re1 {[%clk 0:01:23]}  Nf4 {[%clk 0:00:24]} 27. Qg3 {[%clk 0:01:19]}  c5 {[%clk 0:00:18]} 28. Nf3 {[%clk 0:00:38]}  Bxf3 {[%clk 0:00:16]} 29. Qxf3 {[%clk 0:00:39]}  cxd4 {[%clk 0:00:15]} 30. Rcd1 {[%clk 0:00:39]}  Rc3 {[%clk 0:00:13]} 31. Qe4 {[%clk 0:00:39]}  d3 {[%clk 0:00:09]} 32. Bxd3 {[%clk 0:00:36]}  Nh3+ {[%clk 0:00:03]} 33. Kf1 {[%clk 0:00:36]}  Nf4 {[%clk 0:00:02]} 34. Bxb5 {[%clk 0:00:37]}  Qxb5+ {[%clk 0:00:01]} 35. Kg1 {[%clk 0:00:37]}  Ne6 {[%clk 0:00:01]} 36. Rd5 {[%clk 0:00:35]}  Qc4 {[%clk 0:00:01]} 37. Qe5 {[%clk 0:00:36]}  Qb3 {[%clk 0:00:01]} 38. Rdd1 {[%clk 0:00:33]}  Rc2 {[%clk 0:00:01]} 39. Qf6 {[%clk 0:00:33]}  Qb2 {[%clk 0:00:01]} 40. Rxe6 {[%clk 0:00:31]}  Qxf6 {[%clk 0:00:01]} 41. Rxf6 {[%clk 0:00:32]}  Ra2 {[%clk 0:00:01]} 42. Ra6 {[%clk 0:00:32]}  Rb2 {[%clk 0:00:01]} 43. Rxa7 {[%clk 0:00:32]}  Rc8 {[%clk 0:00:02]} 44. Ra6 {[%clk 0:00:26]}  Rcc2 {[%clk 0:00:02]} 45. Rf6 {[%clk 0:00:27]}  Ra2 {[%clk 0:00:02]} 46. Rf3 {[%clk 0:00:28]}  Rcb2 {[%clk 0:00:02]} 47. h4 {[%clk 0:00:27]}  Rc2 {[%clk 0:00:02]} 48. Rd7 {[%clk 0:00:28]}  f5 {[%clk 0:00:02]} 49. Rg3 {[%clk 0:00:28]}  g5 {[%clk 0:00:01]} 50. hxg5 {[%clk 0:00:29]}  h5 {[%clk 0:00:02]} 51. Re3 {[%clk 0:00:29]}  Rxf2 {[%clk 0:00:02]} 52. Re8# {[%clk 0:00:29]} 1-0


[Site "https://www.chess.com"]

[Event "Titled Tuesday Blitz November 08 Early 2022"]
[White "Bernat, David"]
[Black "Korelskiy, Egor"]
[WhiteFideId "2099225"]
[BlackFideId "34329064"]
[WhiteElo "2333"]
[BlackElo "2043"]
[Result "1-0"]
[Round "05"]
[TimeControl "180+1"]
[Date "2022.11.09"]
[WhiteClock "0:00:07"]
[BlackClock "0:00:03"]

1. c4 {[%clk 0:03:00]}  e6 {[%clk 0:02:59]} 2. e4 {[%clk 0:02:58]}  c5 {[%clk 0:02:55]} 3. Nc3 {[%clk 0:02:58]}  Nc6 {[%clk 0:02:54]} 4. g3 {[%clk 0:02:58]}  g6 {[%clk 0:02:54]} 5. Bg2 {[%clk 0:02:58]}  Bg7 {[%clk 0:02:54]} 6. Nge2 {[%clk 0:02:59]}  Nge7 {[%clk 0:02:54]} 7. O-O {[%clk 0:02:59]}  O-O {[%clk 0:02:54]} 8. d3 {[%clk 0:03:00]}  d6 {[%clk 0:02:54]} 9. Be3 {[%clk 0:03:00]}  Nd4 {[%clk 0:02:54]} 10. a3 {[%clk 0:03:00]}  Bd7 {[%clk 0:02:40]} 11. Rb1 {[%clk 0:02:55]}  Rb8 {[%clk 0:02:21]} 12. b4 {[%clk 0:02:55]}  b6 {[%clk 0:02:19]} 13. f4 {[%clk 0:02:52]}  Qc7 {[%clk 0:02:14]} 14. b5 {[%clk 0:02:38]}  Rbe8 {[%clk 0:01:59]} 15. Bf2 {[%clk 0:02:31]}  d5 {[%clk 0:01:15]} 16. cxd5 {[%clk 0:01:40]}  Nxe2+ {[%clk 0:01:02]} 17. Nxe2 {[%clk 0:01:41]}  exd5 {[%clk 0:01:02]} 18. e5 {[%clk 0:01:37]}  f6 {[%clk 0:00:49]} 19. d4 {[%clk 0:01:37]}  c4 {[%clk 0:00:42]} 20. Nc3 {[%clk 0:01:34]}  Be6 {[%clk 0:00:39]} 21. Re1 {[%clk 0:01:31]}  Qd7 {[%clk 0:00:30]} 22. a4 {[%clk 0:00:54]}  fxe5 {[%clk 0:00:30]} 23. dxe5 {[%clk 0:00:51]}  Kh8 {[%clk 0:00:26]} 24. Qd2 {[%clk 0:00:51]}  Rd8 {[%clk 0:00:24]} 25. Red1 {[%clk 0:00:43]}  Qc7 {[%clk 0:00:20]} 26. Ne2 {[%clk 0:00:38]}  Nf5 {[%clk 0:00:14]} 27. Bh3 {[%clk 0:00:26]}  Qe7 {[%clk 0:00:12]} 28. Bxf5 {[%clk 0:00:26]}  Bxf5 {[%clk 0:00:11]} 29. Nd4 {[%clk 0:00:26]}  Bxb1 {[%clk 0:00:11]} 30. Rxb1 {[%clk 0:00:27]}  Rc8 {[%clk 0:00:09]} 31. a5 {[%clk 0:00:26]}  c3 {[%clk 0:00:09]} 32. Qc2 {[%clk 0:00:24]}  bxa5 {[%clk 0:00:08]} 33. Ra1 {[%clk 0:00:22]}  Qb4 {[%clk 0:00:06]} 34. Rb1 {[%clk 0:00:19]}  Qc4 {[%clk 0:00:06]} 35. Ra1 {[%clk 0:00:14]}  a4 {[%clk 0:00:06]} 36. Rxa4 {[%clk 0:00:13]}  Qc7 {[%clk 0:00:02]} 37. Ne6 {[%clk 0:00:13]}  Qd7 {[%clk 0:00:02]} 38. Nxf8 {[%clk 0:00:13]}  Rxf8 {[%clk 0:00:02]} 39. Rxa7 {[%clk 0:00:14]}  Qxb5 {[%clk 0:00:03]} 40. Qxc3 {[%clk 0:00:12]}  Qb1+ {[%clk 0:00:02]} 41. Kg2 {[%clk 0:00:12]}  Qe4+ {[%clk 0:00:02]} 42. Qf3 {[%clk 0:00:12]}  Qxf3+ {[%clk 0:00:03]} 43. Kxf3 {[%clk 0:00:13]}  Bxe5 {[%clk 0:00:03]} 44. Rd7 {[%clk 0:00:12]}  Bg7 {[%clk 0:00:02]} 45. Rxd5 {[%clk 0:00:12]}  Re8 {[%clk 0:00:02]} 46. Rd7 {[%clk 0:00:12]}  Ra8 {[%clk 0:00:02]} 47. Kg4 {[%clk 0:00:10]}  Rf8 {[%clk 0:00:02]} 48. Bc5 {[%clk 0:00:10]}  Re8 {[%clk 0:00:02]} 49. Bd6 {[%clk 0:00:11]}  Rg8 {[%clk 0:00:02]} 50. h4 {[%clk 0:00:11]}  Re8 {[%clk 0:00:03]} 51. Kg5 {[%clk 0:00:10]}  Rg8 {[%clk 0:00:03]} 52. h5 {[%clk 0:00:10]}  gxh5 {[%clk 0:00:03]} 53. Kxh5 {[%clk 0:00:11]}  Bf6 {[%clk 0:00:03]} 54. g4 {[%clk 0:00:10]}  Bg7 {[%clk 0:00:02]} 55. g5 {[%clk 0:00:08]}  Re8 {[%clk 0:00:02]} 56. f5 {[%clk 0:00:08]}  Ba1 {[%clk 0:00:01]} 57. f6 {[%clk 0:00:07]}  Rg8 {[%clk 0:00:01]} 58. f7 {[%clk 0:00:06]}  Ra8 {[%clk 0:00:01]} 59. f8=Q+ {[%clk 0:00:04]}  Rxf8 {[%clk 0:00:02]} 60. Bxf8 {[%clk 0:00:05]}  Kg8 {[%clk 0:00:03]} 61. Bd6 {[%clk 0:00:05]}  Bg7 {[%clk 0:00:02]} 62. g6 {[%clk 0:00:06]}  hxg6+ {[%clk 0:00:03]} 63. Kxg6 {[%clk 0:00:07]} 1-0


[Site "https://www.chess.com"]

[Event "Titled Tuesday Blitz November 08 Early 2022"]
[White "Biastoch, Bennet"]
[Black "Madaminov, Mukhiddin"]
[WhiteFideId "12939889"]
[BlackFideId "14210703"]
[WhiteElo "2221"]
[BlackElo "2341"]
[Result "1/2-1/2"]
[Round "05"]
[TimeControl "180+1"]
[Date "2022.11.09"]
[WhiteClock "0:00:17"]
[BlackClock "0:00:37"]

1. e4 {[%clk 0:02:57]}  e6 {[%clk 0:02:51]} 2. d4 {[%clk 0:02:56]}  d5 {[%clk 0:02:51]} 3. Nc3 {[%clk 0:02:56]}  Nf6 {[%clk 0:02:50]} 4. e5 {[%clk 0:02:57]}  Nfd7 {[%clk 0:02:50]} 5. f4 {[%clk 0:02:57]}  c5 {[%clk 0:02:51]} 6. Nf3 {[%clk 0:02:58]}  Nc6 {[%clk 0:02:52]} 7. Be3 {[%clk 0:02:58]}  Qb6 {[%clk 0:02:52]} 8. Qd2 {[%clk 0:02:56]}  Qxb2 {[%clk 0:02:51]} 9. Rb1 {[%clk 0:02:55]}  Qa3 {[%clk 0:02:51]} 10. Bb5 {[%clk 0:02:56]}  c4 {[%clk 0:02:51]} 11. Nd1 {[%clk 0:02:45]}  Qxa2 {[%clk 0:02:47]} 12. Rb2 {[%clk 0:02:46]}  Qa5 {[%clk 0:02:45]} 13. c3 {[%clk 0:02:45]}  Qc7 {[%clk 0:02:36]} 14. O-O {[%clk 0:02:45]}  Ne7 {[%clk 0:02:36]} 15. g4 {[%clk 0:02:43]}  h5 {[%clk 0:02:36]} 16. h3 {[%clk 0:02:43]}  hxg4 {[%clk 0:02:36]} 17. hxg4 {[%clk 0:02:44]}  g6 {[%clk 0:02:36]} 18. Ng5 {[%clk 0:02:37]}  a6 {[%clk 0:02:35]} 19. f5 {[%clk 0:02:18]}  gxf5 {[%clk 0:02:32]} 20. gxf5 {[%clk 0:02:17]}  Nxf5 {[%clk 0:02:32]} 21. Rxf5 {[%clk 0:02:14]}  exf5 {[%clk 0:02:32]} 22. Ba4 {[%clk 0:02:14]}  b5 {[%clk 0:02:25]} 23. Bc2 {[%clk 0:02:14]}  Nb6 {[%clk 0:02:25]} 24. Qf2 {[%clk 0:02:10]}  Be7 {[%clk 0:02:19]} 25. Bxf5 {[%clk 0:02:07]}  Bxg5 {[%clk 0:02:18]} 26. Bxg5 {[%clk 0:02:05]}  Rg8 {[%clk 0:02:18]} 27. Qf4 {[%clk 0:02:05]}  f6 {[%clk 0:02:13]} 28. Rg2 {[%clk 0:00:49]}  fxg5 {[%clk 0:02:03]} 29. Qg4 {[%clk 0:00:49]}  Bxf5 {[%clk 0:02:02]} 30. Qxf5 {[%clk 0:00:50]}  Qd7 {[%clk 0:01:57]} 31. e6 {[%clk 0:00:49]}  Qe7 {[%clk 0:01:55]} 32. Ne3 {[%clk 0:00:48]}  O-O-O {[%clk 0:01:55]} 33. Ng4 {[%clk 0:00:46]}  Rgf8 {[%clk 0:01:54]} 34. Qe5 {[%clk 0:00:43]}  Rf4 {[%clk 0:01:52]} 35. Ne3 {[%clk 0:00:41]}  Re4 {[%clk 0:01:51]} 36. Nxd5 {[%clk 0:00:37]}  Rxd5 {[%clk 0:01:33]} 37. Qxe4 {[%clk 0:00:37]}  Kc7 {[%clk 0:01:32]} 38. Rf2 {[%clk 0:00:37]}  Kd6 {[%clk 0:01:29]} 39. Qg6 {[%clk 0:00:36]}  g4 {[%clk 0:01:22]} 40. Rf7 {[%clk 0:00:35]}  Qg5 {[%clk 0:01:22]} 41. e7+ {[%clk 0:00:20]}  Qxg6 {[%clk 0:01:16]} 42. e8=Q {[%clk 0:00:21]}  Qg5 {[%clk 0:00:48]} 43. Qb8+ {[%clk 0:00:16]}  Ke6 {[%clk 0:00:46]} 44. Qe8+ {[%clk 0:00:16]}  Kd6 {[%clk 0:00:45]} 45. Qb8+ {[%clk 0:00:17]}  Ke6 {[%clk 0:00:39]} 46. Qe8+ {[%clk 0:00:17]}  Kd6 {[%clk 0:00:37]} 1/2-1/2


[Site "https://www.chess.com"]

[Event "Titled Tuesday Blitz November 08 Early 2022"]
[White "Bluebaum, Matthias"]
[Black "Piesik, Piotr"]
[WhiteFideId "24651516"]
[BlackFideId "1136194"]
[WhiteElo "2633"]
[BlackElo "2316"]
[Result "1-0"]
[Round "05"]
[TimeControl "180+1"]
[Date "2022.11.08"]
[WhiteClock "0:01:26"]
[BlackClock "0:01:29"]

1. d4 {[%clk 0:03:00]}  c5 {[%clk 0:02:59]} 2. d5 {[%clk 0:03:01]}  e5 {[%clk 0:02:58]} 3. e4 {[%clk 0:03:01]}  d6 {[%clk 0:02:59]} 4. Bb5+ {[%clk 0:03:01]}  Nd7 {[%clk 0:02:59]} 5. a4 {[%clk 0:03:02]}  Be7 {[%clk 0:02:59]} 6. Nf3 {[%clk 0:03:02]}  Nf6 {[%clk 0:02:59]} 7. Nc3 {[%clk 0:03:03]}  O-O {[%clk 0:02:59]} 8. O-O {[%clk 0:03:03]}  Ne8 {[%clk 0:02:59]} 9. Nd2 {[%clk 0:03:00]}  Bg5 {[%clk 0:02:59]} 10. g3 {[%clk 0:02:50]}  Bxd2 {[%clk 0:02:58]} 11. Bxd2 {[%clk 0:02:50]}  a6 {[%clk 0:02:57]} 12. Bd3 {[%clk 0:02:49]}  Ndf6 {[%clk 0:02:54]} 13. f4 {[%clk 0:02:40]}  Bh3 {[%clk 0:02:52]} 14. Rf2 {[%clk 0:02:30]}  Ng4 {[%clk 0:02:46]} 15. Rf3 {[%clk 0:02:26]}  h5 {[%clk 0:02:42]} 16. Bf1 {[%clk 0:02:23]}  Bxf1 {[%clk 0:02:40]} 17. Qxf1 {[%clk 0:02:24]}  exf4 {[%clk 0:02:32]} 18. gxf4 {[%clk 0:02:23]}  f5 {[%clk 0:02:32]} 19. e5 {[%clk 0:02:07]}  dxe5 {[%clk 0:02:31]} 20. fxe5 {[%clk 0:02:08]}  Nxe5 {[%clk 0:02:30]} 21. Rxf5 {[%clk 0:02:08]}  Rxf5 {[%clk 0:02:30]} 22. Qxf5 {[%clk 0:02:09]}  Qf6 {[%clk 0:02:26]} 23. Rf1 {[%clk 0:02:01]}  Qxf5 {[%clk 0:02:09]} 24. Rxf5 {[%clk 0:02:02]}  Nc4 {[%clk 0:02:09]} 25. Bc1 {[%clk 0:02:01]}  g6 {[%clk 0:02:08]} 26. Rf4 {[%clk 0:01:49]}  Ncd6 {[%clk 0:02:06]} 27. Ne4 {[%clk 0:01:50]}  Rc8 {[%clk 0:02:00]} 28. Nxd6 {[%clk 0:01:44]}  Nxd6 {[%clk 0:02:01]} 29. Rf6 {[%clk 0:01:44]}  Ne4 {[%clk 0:01:47]} 30. Rxg6+ {[%clk 0:01:44]}  Kf7 {[%clk 0:01:48]} 31. Rb6 {[%clk 0:01:43]}  Rc7 {[%clk 0:01:48]} 32. c4 {[%clk 0:01:41]}  Kg7 {[%clk 0:01:37]} 33. Kg2 {[%clk 0:01:34]}  Rf7 {[%clk 0:01:34]} 34. Be3 {[%clk 0:01:33]}  h4 {[%clk 0:01:31]} 35. h3 {[%clk 0:01:32]}  Rc7 {[%clk 0:01:29]} 36. Kf3 {[%clk 0:01:30]}  Nf6 {[%clk 0:01:29]} 37. Bf4 {[%clk 0:01:27]}  Re7 {[%clk 0:01:29]} 38. Bg5 {[%clk 0:01:26]} 1-0


[Site "https://www.chess.com"]

[Event "Titled Tuesday Blitz November 08 Early 2022"]
[White "Buscar, Michael"]
[Black "czernikowskqa"]
[WhiteFideId "2603616"]
[WhiteElo "2010"]
[BlackElo "1735"]
[Result "1-0"]
[Round "05"]
[TimeControl "180+1"]
[Date "2022.11.09"]
[WhiteClock "0:00:21"]
[BlackClock "0:00:55"]

1. Nf3 {[%clk 0:03:00]}  Nf6 {[%clk 0:02:59]} 2. b3 {[%clk 0:02:59]}  g6 {[%clk 0:02:59]} 3. Bb2 {[%clk 0:02:55]}  Bg7 {[%clk 0:02:59]} 4. e4 {[%clk 0:02:55]}  d6 {[%clk 0:02:59]} 5. Bc4 {[%clk 0:02:54]}  O-O {[%clk 0:02:59]} 6. Qe2 {[%clk 0:02:55]}  e5 {[%clk 0:02:59]} 7. b4 {[%clk 0:02:49]}  a6 {[%clk 0:02:59]} 8. a3 {[%clk 0:02:49]}  Bg4 {[%clk 0:02:59]} 9. h3 {[%clk 0:02:49]}  Bxf3 {[%clk 0:02:59]} 10. Qxf3 {[%clk 0:02:50]}  Nc6 {[%clk 0:02:57]} 11. d3 {[%clk 0:02:48]}  Nd4 {[%clk 0:02:51]} 12. Qd1 {[%clk 0:02:46]}  Nd7 {[%clk 0:02:49]} 13. Nd2 {[%clk 0:02:43]}  b5 {[%clk 0:02:43]} 14. Bd5 {[%clk 0:02:39]}  Ra7 {[%clk 0:02:34]} 15. c3 {[%clk 0:02:31]}  Ne6 {[%clk 0:02:32]} 16. O-O {[%clk 0:02:31]}  Nb6 {[%clk 0:02:31]} 17. Bb3 {[%clk 0:02:30]}  c5 {[%clk 0:02:30]} 18. g3 {[%clk 0:02:17]}  Rc7 {[%clk 0:02:18]} 19. Qg4 {[%clk 0:02:08]}  Qe7 {[%clk 0:02:12]} 20. Rfe1 {[%clk 0:01:41]}  c4 {[%clk 0:02:02]} 21. Bc2 {[%clk 0:01:36]}  cxd3 {[%clk 0:01:59]} 22. Bxd3 {[%clk 0:01:36]}  Rfc8 {[%clk 0:01:58]} 23. Rad1 {[%clk 0:01:27]}  Na4 {[%clk 0:01:54]} 24. Rb1 {[%clk 0:01:15]}  Nxb2 {[%clk 0:01:53]} 25. Rxb2 {[%clk 0:01:16]}  Rxc3 {[%clk 0:01:54]} 26. Bb1 {[%clk 0:01:04]}  Rxa3 {[%clk 0:01:51]} 27. Nf1 {[%clk 0:01:04]}  Rac3 {[%clk 0:01:49]} 28. Ne3 {[%clk 0:01:05]}  Rc1 {[%clk 0:01:41]} 29. Rd1 {[%clk 0:01:03]}  Rxd1+ {[%clk 0:01:40]} 30. Qxd1 {[%clk 0:01:03]}  Qc7 {[%clk 0:01:40]} 31. Nd5 {[%clk 0:01:02]}  Qc1 {[%clk 0:01:41]} 32. Rd2 {[%clk 0:00:58]}  Nd4 {[%clk 0:01:40]} 33. Ne7+ {[%clk 0:00:58]}  Kf8 {[%clk 0:01:39]} 34. Nxc8 {[%clk 0:00:57]}  Qxc8 {[%clk 0:01:39]} 35. Kg2 {[%clk 0:00:49]}  Bh6 {[%clk 0:01:39]} 36. Ra2 {[%clk 0:00:48]}  Qb7 {[%clk 0:01:39]} 37. Bd3 {[%clk 0:00:46]}  Qc6 {[%clk 0:01:38]} 38. Qa1 {[%clk 0:00:45]}  Nb3 {[%clk 0:01:34]} 39. Rxa6 {[%clk 0:00:39]}  Nxa1 {[%clk 0:01:11]} 40. Rxc6 {[%clk 0:00:39]}  Nb3 {[%clk 0:01:12]} 41. Bxb5 {[%clk 0:00:38]}  Nd4 {[%clk 0:01:11]} 42. Rc8+ {[%clk 0:00:37]}  Ke7 {[%clk 0:01:11]} 43. Ba4 {[%clk 0:00:33]}  Bd2 {[%clk 0:01:10]} 44. Rc7+ {[%clk 0:00:29]}  Kf8 {[%clk 0:01:05]} 45. b5 {[%clk 0:00:28]}  Ba5 {[%clk 0:01:03]} 46. Ra7 {[%clk 0:00:28]}  Bb6 {[%clk 0:01:02]} 47. Rb7 {[%clk 0:00:28]}  Bc5 {[%clk 0:01:02]} 48. Rb8+ {[%clk 0:00:29]}  Ke7 {[%clk 0:01:01]} 49. b6 {[%clk 0:00:29]}  f5 {[%clk 0:01:01]} 50. b7 {[%clk 0:00:29]}  Ba7 {[%clk 0:00:59]} 51. Ra8 {[%clk 0:00:28]}  fxe4 {[%clk 0:00:56]} 52. Rxa7 {[%clk 0:00:27]}  e3 {[%clk 0:00:56]} 53. b8=Q+ {[%clk 0:00:28]}  Kf6 {[%clk 0:00:55]} 54. fxe3 {[%clk 0:00:27]}  Ne2 {[%clk 0:00:55]} 55. Qxd6+ {[%clk 0:00:27]}  Kg5 {[%clk 0:00:53]} 56. Qxe5+ {[%clk 0:00:27]}  Kh6 {[%clk 0:00:54]} 57. h4 {[%clk 0:00:25]}  Nf4+ {[%clk 0:00:55]} 58. Qxf4+ {[%clk 0:00:25]}  Kh5 {[%clk 0:00:55]} 59. Rg7 {[%clk 0:00:24]}  h6 {[%clk 0:00:55]} 60. Bd1# {[%clk 0:00:21]} 1-0


[Site "https://www.chess.com"]

[Event "Titled Tuesday Blitz November 08 Early 2022"]
[White "Chernov, Mikhail"]
[Black "Fernandez De La Vara, Arnaldo"]
[WhiteFideId "24143170"]
[BlackFideId "3518388"]
[WhiteElo "2113"]
[BlackElo "2387"]
[Result "0-1"]
[Round "05"]
[TimeControl "180+1"]
[Date "2022.11.09"]
[WhiteClock "0:00:07"]
[BlackClock "0:00:11"]

1. e4 {[%clk 0:02:58]}  c5 {[%clk 0:02:57]} 2. Nf3 {[%clk 0:02:56]}  e6 {[%clk 0:02:56]} 3. d4 {[%clk 0:02:57]}  cxd4 {[%clk 0:02:57]} 4. Nxd4 {[%clk 0:02:58]}  a6 {[%clk 0:02:58]} 5. Be2 {[%clk 0:02:58]}  Nf6 {[%clk 0:02:57]} 6. Nc3 {[%clk 0:02:57]}  Qc7 {[%clk 0:02:57]} 7. O-O {[%clk 0:02:57]}  d6 {[%clk 0:02:57]} 8. Be3 {[%clk 0:02:58]}  Nbd7 {[%clk 0:02:56]} 9. a4 {[%clk 0:02:58]}  b6 {[%clk 0:02:56]} 10. f4 {[%clk 0:02:44]}  Bb7 {[%clk 0:02:56]} 11. Bf3 {[%clk 0:02:44]}  Nc5 {[%clk 0:02:56]} 12. e5 {[%clk 0:02:43]}  dxe5 {[%clk 0:02:56]} 13. fxe5 {[%clk 0:02:43]}  Qxe5 {[%clk 0:02:55]} 14. Re1 {[%clk 0:02:39]}  Rd8 {[%clk 0:02:39]} 15. Bxb7 {[%clk 0:02:36]}  Nxb7 {[%clk 0:02:40]} 16. Qf3 {[%clk 0:02:29]}  Qc7 {[%clk 0:02:34]} 17. Nf5 {[%clk 0:01:56]}  Nd6 {[%clk 0:02:27]} 18. Qg3 {[%clk 0:01:31]}  g6 {[%clk 0:02:18]} 19. Nd4 {[%clk 0:01:13]}  Be7 {[%clk 0:02:11]} 20. Rad1 {[%clk 0:00:49]}  O-O {[%clk 0:02:10]} 21. Kh1 {[%clk 0:00:48]}  Qc4 {[%clk 0:01:43]} 22. Bg5 {[%clk 0:00:34]}  Nh5 {[%clk 0:01:23]} 23. Qh4 {[%clk 0:00:31]}  Bxg5 {[%clk 0:01:23]} 24. Qxg5 {[%clk 0:00:32]}  Kg7 {[%clk 0:01:13]} 25. Re3 {[%clk 0:00:19]}  Qc5 {[%clk 0:01:07]} 26. Qxc5 {[%clk 0:00:17]}  bxc5 {[%clk 0:01:08]} 27. Nc6 {[%clk 0:00:18]}  Nf5 {[%clk 0:00:57]} 28. Rxd8 {[%clk 0:00:09]}  Rxd8 {[%clk 0:00:41]} 29. Nxd8 {[%clk 0:00:10]}  Nxe3 {[%clk 0:00:42]} 30. a5 {[%clk 0:00:08]}  Nf6 {[%clk 0:00:21]} 31. Na4 {[%clk 0:00:08]}  Nd7 {[%clk 0:00:08]} 32. Nc6 {[%clk 0:00:07]}  Nxc2 {[%clk 0:00:06]} 33. Kg1 {[%clk 0:00:05]}  Nb4 {[%clk 0:00:04]} 34. Nd8 {[%clk 0:00:03]}  Nd3 {[%clk 0:00:02]} 35. b3 {[%clk 0:00:03]}  Nc1 {[%clk 0:00:03]} 36. Nc6 {[%clk 0:00:02]}  Nxb3 {[%clk 0:00:03]} 37. Kf2 {[%clk 0:00:02]}  c4 {[%clk 0:00:03]} 38. Ke2 {[%clk 0:00:02]}  Kf6 {[%clk 0:00:03]} 39. Kd1 {[%clk 0:00:02]}  Kf5 {[%clk 0:00:03]} 40. Kc2 {[%clk 0:00:03]}  Ke4 {[%clk 0:00:04]} 41. Kc3 {[%clk 0:00:02]}  Ne5 {[%clk 0:00:04]} 42. Nxe5 {[%clk 0:00:02]}  Kxe5 {[%clk 0:00:05]} 43. Kxc4 {[%clk 0:00:02]}  Nxa5+ {[%clk 0:00:05]} 44. Kd3 {[%clk 0:00:03]}  Nb7 {[%clk 0:00:06]} 45. Ke3 {[%clk 0:00:03]}  Nd6 {[%clk 0:00:06]} 46. Nb6 {[%clk 0:00:03]}  a5 {[%clk 0:00:07]} 47. Kd3 {[%clk 0:00:03]}  f5 {[%clk 0:00:04]} 48. Na4 {[%clk 0:00:04]}  Kf6 {[%clk 0:00:04]} 49. Kd4 {[%clk 0:00:04]}  e5+ {[%clk 0:00:04]} 50. Kd5 {[%clk 0:00:05]}  Ne4 {[%clk 0:00:05]} 51. Nb6 {[%clk 0:00:05]}  Nf2 {[%clk 0:00:05]} 52. Nd7+ {[%clk 0:00:04]}  Kg5 {[%clk 0:00:06]} 53. Nxe5 {[%clk 0:00:05]}  Ng4 {[%clk 0:00:06]} 54. Nf3+ {[%clk 0:00:05]}  Kf4 {[%clk 0:00:07]} 55. h3 {[%clk 0:00:05]}  Ne3+ {[%clk 0:00:07]} 56. Ke6 {[%clk 0:00:06]}  Nxg2 {[%clk 0:00:08]} 57. Nd2 {[%clk 0:00:06]}  a4 {[%clk 0:00:08]} 58. Nc4 {[%clk 0:00:06]}  Ne3 {[%clk 0:00:08]} 59. Na3 {[%clk 0:00:06]}  Kg3 {[%clk 0:00:08]} 60. Ke5 {[%clk 0:00:06]}  f4 {[%clk 0:00:09]} 61. Ke4 {[%clk 0:00:07]}  f3 {[%clk 0:00:10]} 62. Kxe3 {[%clk 0:00:07]}  f2 {[%clk 0:00:11]} 0-1


[Site "https://www.chess.com"]